[Event "Titled Tuesday Blitz December 20 Early 2022"]
[White "Lion-Al-Messi"]
[Black "Ruzele, Darius"]
[BlackFideId "12800104"]
[WhiteElo "2520"]
[BlackElo "2531"]
[Result "1-0"]
[Round "02"]
[TimeControl "180+2"]
[Date "2022.12.20"]
[WhiteClock "0:02:05"]
[BlackClock "0:01:06"]

1. e4 {[%clk 0:02:58]}  c5 {[%clk 0:02:59]} 2. Nf3 {[%clk 0:02:58]}  g6 {[%clk 0:02:57]} 3. d4 {[%clk 0:02:57]}  cxd4 {[%clk 0:02:58]} 4. Qxd4 {[%clk 0:02:58]}  Nf6 {[%clk 0:02:57]} 5. e5 {[%clk 0:02:58]}  Nc6 {[%clk 0:02:58]} 6. Qa4 {[%clk 0:02:59]}  Nd5 {[%clk 0:02:57]} 7. Qe4 {[%clk 0:02:59]}  Ndb4 {[%clk 0:02:52]} 8. Bb5 {[%clk 0:02:59]}  d5 {[%clk 0:02:50]} 9. Qxb4 {[%clk 0:02:55]}  Bf5 {[%clk 0:02:43]} 10. O-O {[%clk 0:02:53]}  Bg7 {[%clk 0:02:43]} 11. Nd4 {[%clk 0:02:52]}  O-O {[%clk 0:02:38]} 12. Bxc6 {[%clk 0:02:50]}  bxc6 {[%clk 0:02:38]} 13. Nxf5 {[%clk 0:02:50]}  gxf5 {[%clk 0:02:37]} 14. Qd4 {[%clk 0:02:47]}  c5 {[%clk 0:02:36]} 15. Qxc5 {[%clk 0:02:45]}  Bxe5 {[%clk 0:02:36]} 16. Bh6 {[%clk 0:02:45]}  Bxb2 {[%clk 0:02:26]} 17. Bxf8 {[%clk 0:02:43]}  Qxf8 {[%clk 0:02:26]} 18. Nd2 {[%clk 0:02:41]}  Rc8 {[%clk 0:02:22]} 19. Qxd5 {[%clk 0:02:40]}  Rd8 {[%clk 0:02:18]} 20. Qa5 {[%clk 0:02:37]}  Bxa1 {[%clk 0:02:04]} 21. Rxa1 {[%clk 0:02:38]}  e6 {[%clk 0:02:04]} 22. Nf3 {[%clk 0:02:37]}  Qd6 {[%clk 0:02:02]} 23. h4 {[%clk 0:02:36]}  a6 {[%clk 0:01:59]} 24. Qa4 {[%clk 0:02:35]}  Rc8 {[%clk 0:01:58]} 25. h5 {[%clk 0:02:33]}  h6 {[%clk 0:01:57]} 26. Re1 {[%clk 0:02:31]}  Rc3 {[%clk 0:01:31]} 27. Qd4 {[%clk 0:02:06]}  Qxd4 {[%clk 0:01:16]} 28. Nxd4 {[%clk 0:02:06]}  Ra3 {[%clk 0:01:16]} 29. Rc1 {[%clk 0:02:07]}  Rxa2 {[%clk 0:01:12]} 30. c4 {[%clk 0:02:07]}  Kf8 {[%clk 0:01:06]} 31. c5 {[%clk 0:02:06]}  Ke8 {[%clk 0:01:07]} 32. c6 {[%clk 0:02:06]}  Kd8 {[%clk 0:01:07]} 33. c7+ {[%clk 0:02:05]}  Kc8 {[%clk 0:01:06]} 34. Nc6 {[%clk 0:02:05]}  Kxc7 {[%clk 0:01:06]} 35. Nb4+ {[%clk 0:02:05]} 1-0


[Site "https://www.chess.com"]

[Event "Titled Tuesday Blitz December 20 Early 2022"]
[White "Liyanage, Ranindu Dilshan"]
[Black "Ilia_Jude"]
[WhiteFideId "9915834"]
[WhiteElo "2342"]
[BlackElo "2372"]
[Result "0-1"]
[Round "02"]
[TimeControl "180+2"]
[Date "2022.12.20"]
[WhiteClock "0:00:31"]
[BlackClock "0:00:51"]

1. d4 {[%clk 0:03:00]}  Nf6 {[%clk 0:02:59]} 2. Nc3 {[%clk 0:02:57]}  g6 {[%clk 0:03:00]} 3. e4 {[%clk 0:02:56]}  d6 {[%clk 0:03:00]} 4. Nf3 {[%clk 0:02:56]}  Bg7 {[%clk 0:03:00]} 5. Be2 {[%clk 0:02:57]}  O-O {[%clk 0:03:00]} 6. O-O {[%clk 0:02:57]}  a6 {[%clk 0:02:59]} 7. a4 {[%clk 0:02:55]}  Nc6 {[%clk 0:02:56]} 8. d5 {[%clk 0:02:51]}  Nb8 {[%clk 0:02:56]} 9. h3 {[%clk 0:02:41]}  Nbd7 {[%clk 0:02:49]} 10. Nd4 {[%clk 0:02:40]}  Nc5 {[%clk 0:02:31]} 11. f3 {[%clk 0:02:34]}  e5 {[%clk 0:02:27]} 12. dxe6 {[%clk 0:02:31]}  Nxe6 {[%clk 0:02:27]} 13. Be3 {[%clk 0:02:31]}  d5 {[%clk 0:02:19]} 14. e5 {[%clk 0:02:23]}  Nd7 {[%clk 0:02:06]} 15. f4 {[%clk 0:02:18]}  c5 {[%clk 0:02:00]} 16. Nxe6 {[%clk 0:02:06]}  fxe6 {[%clk 0:02:01]} 17. Bg4 {[%clk 0:01:35]}  d4 {[%clk 0:01:44]} 18. Bxe6+ {[%clk 0:01:23]}  Kh8 {[%clk 0:01:44]} 19. Bxd4 {[%clk 0:01:19]}  cxd4 {[%clk 0:01:43]} 20. Qxd4 {[%clk 0:01:19]}  Qb6 {[%clk 0:01:42]} 21. Qxb6 {[%clk 0:01:09]}  Nxb6 {[%clk 0:01:43]} 22. Ba2 {[%clk 0:01:08]}  Bf5 {[%clk 0:01:38]} 23. a5 {[%clk 0:01:05]}  Nd7 {[%clk 0:01:26]} 24. Rad1 {[%clk 0:01:04]}  Nc5 {[%clk 0:01:23]} 25. Bd5 {[%clk 0:00:59]}  Bxc2 {[%clk 0:01:17]} 26. Rd2 {[%clk 0:00:59]}  Bb3 {[%clk 0:01:15]} 27. Bxb3 {[%clk 0:00:50]}  Nxb3 {[%clk 0:01:16]} 28. Rd7 {[%clk 0:00:51]}  Nxa5 {[%clk 0:01:15]} 29. b4 {[%clk 0:00:50]}  Nc6 {[%clk 0:01:11]} 30. Rxb7 {[%clk 0:00:51]}  Rab8 {[%clk 0:01:09]} 31. Rxb8 {[%clk 0:00:49]}  Rxb8 {[%clk 0:01:10]} 32. Nd5 {[%clk 0:00:48]}  Nxb4 {[%clk 0:01:05]} 33. Rb1 {[%clk 0:00:48]}  Nc6 {[%clk 0:01:05]} 34. Ra1 {[%clk 0:00:48]}  a5 {[%clk 0:01:02]} 35. Rc1 {[%clk 0:00:48]}  Nb4 {[%clk 0:00:56]} 36. Ne3 {[%clk 0:00:39]}  Bf8 {[%clk 0:00:54]} 37. Ra1 {[%clk 0:00:36]}  Bc5 {[%clk 0:00:53]} 38. Ra3 {[%clk 0:00:31]}  Nc2 {[%clk 0:00:51]} 0-1


[Site "https://www.chess.com"]

[Event "Titled Tuesday Blitz December 20 Early 2022"]
[White "MAGMAchess02"]
[Black "Derybas, Igor"]
[BlackFideId "41846400"]
[WhiteElo "2316"]
[BlackElo "1490"]
[Result "0-1"]
[Round "02"]
[TimeControl "180+2"]
[Date "2022.12.20"]
[WhiteClock "0:00:01"]
[BlackClock "0:00:09"]

1. d4 {[%clk 0:03:00]}  Nf6 {[%clk 0:02:59]} 2. c4 {[%clk 0:02:59]}  c5 {[%clk 0:02:59]} 3. d5 {[%clk 0:02:59]}  b5 {[%clk 0:03:00]} 4. cxb5 {[%clk 0:03:00]}  a6 {[%clk 0:03:00]} 5. bxa6 {[%clk 0:02:59]}  Bxa6 {[%clk 0:03:00]} 6. Nc3 {[%clk 0:02:59]}  d6 {[%clk 0:03:01]} 7. e4 {[%clk 0:02:59]}  Bxf1 {[%clk 0:03:01]} 8. Kxf1 {[%clk 0:03:00]}  g6 {[%clk 0:03:02]} 9. g3 {[%clk 0:03:00]}  Bg7 {[%clk 0:03:00]} 10. Kg2 {[%clk 0:02:59]}  O-O {[%clk 0:02:59]} 11. a4 {[%clk 0:02:59]}  e6 {[%clk 0:02:55]} 12. Nf3 {[%clk 0:02:54]}  exd5 {[%clk 0:02:55]} 13. exd5 {[%clk 0:02:53]}  Nbd7 {[%clk 0:02:55]} 14. Ra3 {[%clk 0:02:36]}  Re8 {[%clk 0:02:51]} 15. Qd3 {[%clk 0:02:33]}  Nb6 {[%clk 0:02:40]} 16. a5 {[%clk 0:02:23]}  c4 {[%clk 0:02:40]} 17. Qd1 {[%clk 0:02:14]}  Nbd7 {[%clk 0:02:40]} 18. Bf4 {[%clk 0:02:13]}  Nc5 {[%clk 0:02:38]} 19. Nd4 {[%clk 0:02:05]}  Nd3 {[%clk 0:02:28]} 20. Bc1 {[%clk 0:02:00]}  Qd7 {[%clk 0:02:16]} 21. Qf3 {[%clk 0:01:54]}  Ng4 {[%clk 0:01:59]} 22. Nc6 {[%clk 0:01:22]}  Ngxf2 {[%clk 0:01:26]} 23. Rf1 {[%clk 0:01:21]}  Qh3+ {[%clk 0:01:22]} 24. Kg1 {[%clk 0:01:16]}  Qxf1+ {[%clk 0:01:09]} 25. Kxf1 {[%clk 0:01:10]}  Re1+ {[%clk 0:01:10]} 26. Kg2 {[%clk 0:01:10]}  Rxc1 {[%clk 0:01:11]} 27. Qe2 {[%clk 0:00:45]}  Rc2 {[%clk 0:01:00]} 28. Qxc2 {[%clk 0:00:43]}  Ne1+ {[%clk 0:01:00]} 29. Kxf2 {[%clk 0:00:43]}  Nxc2 {[%clk 0:01:01]} 30. Ra4 {[%clk 0:00:39]}  Ra6 {[%clk 0:00:50]} 31. Rxc4 {[%clk 0:00:33]}  h5 {[%clk 0:00:46]} 32. b4 {[%clk 0:00:32]}  Nxb4 {[%clk 0:00:42]} 33. Nxb4 {[%clk 0:00:31]}  Rxa5 {[%clk 0:00:42]} 34. Ne4 {[%clk 0:00:20]}  Ra4 {[%clk 0:00:42]} 35. Nxd6 {[%clk 0:00:18]}  Bf8 {[%clk 0:00:42]} 36. Ne4 {[%clk 0:00:07]}  Bxb4 {[%clk 0:00:35]} 37. Kf3 {[%clk 0:00:07]}  Ra3+ {[%clk 0:00:35]} 38. Kf4 {[%clk 0:00:08]}  Bf8 {[%clk 0:00:29]} 39. Rc8 {[%clk 0:00:07]}  Kg7 {[%clk 0:00:28]} 40. d6 {[%clk 0:00:08]}  Rd3 {[%clk 0:00:28]} 41. Ke5 {[%clk 0:00:05]}  f5 {[%clk 0:00:20]} 42. Rc7+ {[%clk 0:00:03]}  Kh6 {[%clk 0:00:20]} 43. d7 {[%clk 0:00:02]}  fxe4 {[%clk 0:00:17]} 44. Rc8 {[%clk 0:00:01]}  Rxd7 {[%clk 0:00:09]} 0-1


[Site "https://www.chess.com"]

[Event "Titled Tuesday Blitz December 20 Early 2022"]
[White "Mac Intyre, Paul"]
[Black "Rud_Makarian"]
[WhiteFideId "2014505"]
[WhiteElo "2246"]
[BlackElo "2889"]
[Result "0-1"]
[Round "02"]
[TimeControl "180+2"]
[Date "2022.12.20"]
[WhiteClock "0:00:01"]
[BlackClock "0:00:14"]

1. c4 {[%clk 0:03:00]}  Nf6 {[%clk 0:02:59]} 2. Nc3 {[%clk 0:03:00]}  g6 {[%clk 0:02:58]} 3. e4 {[%clk 0:03:00]}  d6 {[%clk 0:02:59]} 4. d4 {[%clk 0:03:00]}  Bg7 {[%clk 0:03:00]} 5. f4 {[%clk 0:03:00]}  O-O {[%clk 0:03:00]} 6. Nf3 {[%clk 0:03:00]}  e5 {[%clk 0:02:48]} 7. fxe5 {[%clk 0:02:54]}  dxe5 {[%clk 0:02:49]} 8. d5 {[%clk 0:02:55]}  Nbd7 {[%clk 0:02:42]} 9. Bd3 {[%clk 0:02:25]}  a5 {[%clk 0:02:33]} 10. O-O {[%clk 0:02:25]}  Ne8 {[%clk 0:02:24]} 11. Bg5 {[%clk 0:02:19]}  f6 {[%clk 0:02:21]} 12. Bh4 {[%clk 0:02:19]}  b6 {[%clk 0:02:19]} 13. Bc2 {[%clk 0:02:13]}  Nd6 {[%clk 0:02:17]} 14. b3 {[%clk 0:02:08]}  Bh6 {[%clk 0:02:08]} 15. Kh1 {[%clk 0:02:03]}  Qe8 {[%clk 0:02:05]} 16. Qe2 {[%clk 0:01:55]}  Nc5 {[%clk 0:01:54]} 17. a3 {[%clk 0:01:52]}  Ba6 {[%clk 0:01:53]} 18. Ne1 {[%clk 0:01:39]}  a4 {[%clk 0:01:42]} 19. Nd3 {[%clk 0:01:29]}  Nxb3 {[%clk 0:01:31]} 20. Bxb3 {[%clk 0:01:19]}  axb3 {[%clk 0:01:32]} 21. Nb2 {[%clk 0:01:19]}  f5 {[%clk 0:01:19]} 22. exf5 {[%clk 0:01:20]}  Nxf5 {[%clk 0:01:18]} 23. Bf2 {[%clk 0:01:12]}  Nd4 {[%clk 0:01:14]} 24. Qd3 {[%clk 0:01:07]}  Qd7 {[%clk 0:01:06]} 25. Rae1 {[%clk 0:00:59]}  Rf5 {[%clk 0:00:58]} 26. Ne4 {[%clk 0:00:52]}  Raf8 {[%clk 0:00:55]} 27. Bh4 {[%clk 0:00:35]}  Rxf1+ {[%clk 0:00:39]} 28. Rxf1 {[%clk 0:00:36]}  Rxf1+ {[%clk 0:00:39]} 29. Qxf1 {[%clk 0:00:36]}  Qf5 {[%clk 0:00:40]} 30. Qe1 {[%clk 0:00:16]}  Nc2 {[%clk 0:00:30]} 31. Qe2 {[%clk 0:00:15]}  Bc1 {[%clk 0:00:30]} 32. Nf6+ {[%clk 0:00:04]}  Kh8 {[%clk 0:00:23]} 33. g4 {[%clk 0:00:04]}  Qf4 {[%clk 0:00:19]} 34. Nd3 {[%clk 0:00:04]}  Qe3 {[%clk 0:00:15]} 35. Nxc1 {[%clk 0:00:03]}  b2 {[%clk 0:00:14]} 36. Qxe3 {[%clk 0:00:02]}  Nxe3 {[%clk 0:00:14]} 37. Bg3 {[%clk 0:00:01]}  bxc1=Q+ {[%clk 0:00:14]} 0-1


[Site "https://www.chess.com"]

[Event "Titled Tuesday Blitz December 20 Early 2022"]
[White "Mestnikov, Aisen"]
[Black "tdf98pantani"]
[WhiteFideId "34130117"]
[WhiteElo "2043"]
[BlackElo "2734"]
[Result "0-1"]
[Round "02"]
[TimeControl "180+2"]
[Date "2022.12.20"]
[WhiteClock "0:00:05"]
[BlackClock "0:00:20"]

1. d4 {[%clk 0:02:58]}  d5 {[%clk 0:02:58]} 2. c4 {[%clk 0:02:58]}  e6 {[%clk 0:02:58]} 3. Nf3 {[%clk 0:02:58]}  c6 {[%clk 0:02:57]} 4. g3 {[%clk 0:02:58]}  dxc4 {[%clk 0:02:53]} 5. Bg2 {[%clk 0:02:58]}  b5 {[%clk 0:02:53]} 6. Ne5 {[%clk 0:02:57]}  Bb7 {[%clk 0:02:53]} 7. Nc3 {[%clk 0:02:57]}  a6 {[%clk 0:02:48]} 8. a4 {[%clk 0:02:56]}  Qc8 {[%clk 0:02:04]} 9. O-O {[%clk 0:02:56]}  Nf6 {[%clk 0:02:03]} 10. Bg5 {[%clk 0:02:20]}  Nbd7 {[%clk 0:01:58]} 11. Rc1 {[%clk 0:02:08]}  h6 {[%clk 0:01:46]} 12. Bxf6 {[%clk 0:02:02]}  Nxf6 {[%clk 0:01:46]} 13. b3 {[%clk 0:01:35]}  b4 {[%clk 0:01:42]} 14. Nxc4 {[%clk 0:01:11]}  bxc3 {[%clk 0:01:41]} 15. Nb6 {[%clk 0:01:12]}  Qd8 {[%clk 0:01:37]} 16. Nxa8 {[%clk 0:01:12]}  Bb4 {[%clk 0:01:36]} 17. Qd3 {[%clk 0:00:57]}  O-O {[%clk 0:01:23]} 18. Qc4 {[%clk 0:00:53]}  a5 {[%clk 0:01:21]} 19. Bxc6 {[%clk 0:00:41]}  Qc8 {[%clk 0:01:18]} 20. Bxb7 {[%clk 0:00:16]}  Qxb7 {[%clk 0:01:13]} 21. Nc7 {[%clk 0:00:08]}  Rc8 {[%clk 0:01:12]} 22. Rfd1 {[%clk 0:00:09]}  Rxc7 {[%clk 0:01:11]} 23. Qd3 {[%clk 0:00:09]}  Qd5 {[%clk 0:01:08]} 24. f3 {[%clk 0:00:06]}  Qxb3 {[%clk 0:01:07]} 25. e4 {[%clk 0:00:05]}  Qxa4 {[%clk 0:01:05]} 26. d5 {[%clk 0:00:06]}  Rd7 {[%clk 0:00:53]} 27. Qc4 {[%clk 0:00:05]}  exd5 {[%clk 0:00:52]} 28. exd5 {[%clk 0:00:06]}  Qa3 {[%clk 0:00:30]} 29. h4 {[%clk 0:00:05]}  g6 {[%clk 0:00:24]} 30. g4 {[%clk 0:00:05]}  Rxd5 {[%clk 0:00:21]} 31. Rxd5 {[%clk 0:00:05]}  Qxc1+ {[%clk 0:00:20]} 32. Kg2 {[%clk 0:00:04]}  Nxd5 {[%clk 0:00:20]} 33. Qxd5 {[%clk 0:00:05]}  Qd2+ {[%clk 0:00:20]} 34. Kg3 {[%clk 0:00:05]}  Qxd5 {[%clk 0:00:20]} 0-1


[Site "https://www.chess.com"]

[Event "Titled Tuesday Blitz December 20 Early 2022"]
[White "Mitrabha, Guha"]
[Black "KubaGepard"]
[WhiteFideId "5057000"]
[WhiteElo "2507"]
[BlackElo "2594"]
[Result "1-0"]
[Round "02"]
[TimeControl "180+2"]
[Date "2022.12.20"]
[WhiteClock "0:01:16"]
[BlackClock "0:00:23"]

1. d4 {[%clk 0:03:00]}  d5 {[%clk 0:02:59]} 2. f3 {[%clk 0:03:00]}  c5 {[%clk 0:02:46]} 3. dxc5 {[%clk 0:02:57]}  e5 {[%clk 0:02:42]} 4. c4 {[%clk 0:02:54]}  d4 {[%clk 0:02:29]} 5. e3 {[%clk 0:02:48]}  Bxc5 {[%clk 0:02:27]} 6. exd4 {[%clk 0:02:48]}  Bxd4 {[%clk 0:02:28]} 7. Bd3 {[%clk 0:02:46]}  Qb6 {[%clk 0:02:16]} 8. Ne2 {[%clk 0:02:39]}  Bf2+ {[%clk 0:02:17]} 9. Kf1 {[%clk 0:02:37]}  Bh4 {[%clk 0:02:17]} 10. Ng3 {[%clk 0:02:31]}  Nf6 {[%clk 0:02:11]} 11. c5 {[%clk 0:02:31]}  Qxc5 {[%clk 0:02:03]} 12. Nc3 {[%clk 0:02:29]}  O-O {[%clk 0:01:56]} 13. Qa4 {[%clk 0:02:28]}  Qd4 {[%clk 0:01:47]} 14. Qxd4 {[%clk 0:02:20]}  exd4 {[%clk 0:01:48]} 15. Nb5 {[%clk 0:02:20]}  Bxg3 {[%clk 0:01:46]} 16. hxg3 {[%clk 0:02:20]}  Nc6 {[%clk 0:01:46]} 17. Bg5 {[%clk 0:02:20]}  Nb4 {[%clk 0:01:36]} 18. Bxf6 {[%clk 0:02:09]}  Nxd3 {[%clk 0:01:32]} 19. Nc7 {[%clk 0:02:03]}  gxf6 {[%clk 0:01:29]} 20. Nxa8 {[%clk 0:02:04]}  Nxb2 {[%clk 0:01:22]} 21. Nc7 {[%clk 0:01:58]}  d3 {[%clk 0:01:16]} 22. Ke1 {[%clk 0:01:46]}  Rd8 {[%clk 0:01:09]} 23. Kd2 {[%clk 0:01:44]}  Nc4+ {[%clk 0:01:09]} 24. Kc3 {[%clk 0:01:45]}  Nb6 {[%clk 0:00:59]} 25. Nb5 {[%clk 0:01:40]}  a6 {[%clk 0:00:58]} 26. Nd4 {[%clk 0:01:40]}  d2 {[%clk 0:00:54]} 27. Rh4 {[%clk 0:01:39]}  Bd7 {[%clk 0:00:35]} 28. Kxd2 {[%clk 0:01:36]}  Nc4+ {[%clk 0:00:35]} 29. Ke2 {[%clk 0:01:33]}  Re8+ {[%clk 0:00:34]} 30. Kf2 {[%clk 0:01:32]}  Ne5 {[%clk 0:00:33]} 31. Rd1 {[%clk 0:01:26]}  Ba4 {[%clk 0:00:32]} 32. Rd2 {[%clk 0:01:23]}  Rd8 {[%clk 0:00:25]} 33. Nb3 {[%clk 0:01:17]}  Nd3+ {[%clk 0:00:23]} 34. Rxd3 {[%clk 0:01:16]} 1-0


[Site "https://www.chess.com"]

[Event "Titled Tuesday Blitz December 20 Early 2022"]
[White "Monticone, Sonia"]
[Black "AwareIdea"]
[WhiteFideId "836613"]
[WhiteElo "1887"]
[BlackElo "2513"]
[Result "1-0"]
[Round "02"]
[TimeControl "180+2"]
[Date "2022.12.20"]
[WhiteClock "0:00:41"]
[BlackClock "0:00:12"]

1. e4 {[%clk 0:03:00]}  e5 {[%clk 0:02:59]} 2. Nf3 {[%clk 0:03:00]}  Nc6 {[%clk 0:03:00]} 3. d4 {[%clk 0:03:00]}  exd4 {[%clk 0:03:00]} 4. c3 {[%clk 0:03:00]}  d5 {[%clk 0:03:00]} 5. exd5 {[%clk 0:03:00]}  Qxd5 {[%clk 0:03:01]} 6. cxd4 {[%clk 0:03:01]}  Bb4+ {[%clk 0:03:01]} 7. Nc3 {[%clk 0:03:01]}  Bg4 {[%clk 0:03:00]} 8. Be2 {[%clk 0:03:01]}  Bxf3 {[%clk 0:02:59]} 9. Bxf3 {[%clk 0:03:02]}  Qc4 {[%clk 0:02:59]} 10. Qb3 {[%clk 0:02:57]}  Qxb3 {[%clk 0:02:59]} 11. Bxc6+ {[%clk 0:02:56]}  bxc6 {[%clk 0:02:58]} 12. axb3 {[%clk 0:02:57]}  a5 {[%clk 0:02:51]} 13. O-O {[%clk 0:02:56]}  Nf6 {[%clk 0:02:46]} 14. Bg5 {[%clk 0:02:53]}  Nd5 {[%clk 0:02:41]} 15. Ne4 {[%clk 0:02:45]}  Kd7 {[%clk 0:02:38]} 16. Rfd1 {[%clk 0:02:37]}  Rab8 {[%clk 0:02:37]} 17. Bd2 {[%clk 0:02:37]}  f5 {[%clk 0:02:28]} 18. Ng5 {[%clk 0:02:11]}  Bd6 {[%clk 0:02:14]} 19. Rxa5 {[%clk 0:01:56]}  Rxb3 {[%clk 0:02:12]} 20. Bc1 {[%clk 0:01:56]}  Re8 {[%clk 0:01:53]} 21. Kf1 {[%clk 0:01:30]}  h6 {[%clk 0:01:51]} 22. Nf3 {[%clk 0:01:27]}  f4 {[%clk 0:01:42]} 23. h4 {[%clk 0:01:25]}  g6 {[%clk 0:01:37]} 24. Ra4 {[%clk 0:01:11]}  Nb4 {[%clk 0:01:21]} 25. Ne5+ {[%clk 0:01:05]}  Bxe5 {[%clk 0:01:03]} 26. dxe5+ {[%clk 0:01:05]}  Nd5 {[%clk 0:01:03]} 27. Bxf4 {[%clk 0:00:50]}  Rxb2 {[%clk 0:01:00]} 28. Bxh6 {[%clk 0:00:50]}  Ke6 {[%clk 0:00:46]} 29. Rc4 {[%clk 0:00:49]}  Rb6 {[%clk 0:00:40]} 30. Rdc1 {[%clk 0:00:49]}  Kd7 {[%clk 0:00:40]} 31. Re1 {[%clk 0:00:45]}  Re6 {[%clk 0:00:29]} 32. Bg5 {[%clk 0:00:45]}  Rb4 {[%clk 0:00:27]} 33. Rxb4 {[%clk 0:00:44]}  Nxb4 {[%clk 0:00:28]} 34. f4 {[%clk 0:00:44]}  Ke8 {[%clk 0:00:23]} 35. g4 {[%clk 0:00:44]}  Nd3 {[%clk 0:00:22]} 36. Re3 {[%clk 0:00:42]}  Nc5 {[%clk 0:00:20]} 37. f5 {[%clk 0:00:41]}  gxf5 {[%clk 0:00:14]} 38. gxf5 {[%clk 0:00:42]}  Re7 {[%clk 0:00:12]} 39. Bxe7 {[%clk 0:00:42]}  Kxe7 {[%clk 0:00:13]} 40. h5 {[%clk 0:00:43]}  Kf7 {[%clk 0:00:14]} 41. e6+ {[%clk 0:00:41]}  Ke7 {[%clk 0:00:14]} 42. h6 {[%clk 0:00:42]}  Kf6 {[%clk 0:00:10]} 43. e7 {[%clk 0:00:42]}  Kg5 {[%clk 0:00:11]} 44. e8=Q {[%clk 0:00:42]}  Kf4 {[%clk 0:00:12]} 45. Qe5+ {[%clk 0:00:41]} 1-0


[Site "https://www.chess.com"]

[Event "Titled Tuesday Blitz December 20 Early 2022"]
[White "Myall, Ivan J"]
[Black "Wild, Achim"]
[WhiteFideId "425168"]
[BlackFideId "4658728"]
[WhiteElo "1924"]
[BlackElo "2265"]
[Result "1-0"]
[Round "02"]
[TimeControl "180+2"]
[Date "2022.12.20"]
[WhiteClock "0:00:53"]
[BlackClock "0:00:04"]

1. e4 {[%clk 0:02:59]}  a6 {[%clk 0:02:58]} 2. d4 {[%clk 0:02:59]}  e6 {[%clk 0:02:57]} 3. Bd3 {[%clk 0:02:58]}  d5 {[%clk 0:02:55]} 4. Nf3 {[%clk 0:02:57]}  dxe4 {[%clk 0:02:53]} 5. Bxe4 {[%clk 0:02:57]}  Nf6 {[%clk 0:02:54]} 6. Bd3 {[%clk 0:02:57]}  c5 {[%clk 0:02:53]} 7. dxc5 {[%clk 0:02:57]}  Bxc5 {[%clk 0:02:52]} 8. O-O {[%clk 0:02:58]}  Nc6 {[%clk 0:02:49]} 9. Nc3 {[%clk 0:02:58]}  O-O {[%clk 0:02:47]} 10. Bg5 {[%clk 0:02:58]}  Be7 {[%clk 0:02:32]} 11. Qe2 {[%clk 0:02:57]}  Nb4 {[%clk 0:02:30]} 12. Bc4 {[%clk 0:02:55]}  b5 {[%clk 0:02:27]} 13. Rfd1 {[%clk 0:02:55]}  Qc7 {[%clk 0:02:24]} 14. Bb3 {[%clk 0:02:52]}  Bb7 {[%clk 0:02:23]} 15. a3 {[%clk 0:02:52]}  Nc6 {[%clk 0:02:21]} 16. Re1 {[%clk 0:02:43]}  Rfe8 {[%clk 0:02:14]} 17. Rad1 {[%clk 0:02:40]}  Na5 {[%clk 0:02:08]} 18. Bxe6 {[%clk 0:02:29]}  fxe6 {[%clk 0:02:05]} 19. Qxe6+ {[%clk 0:02:30]}  Kh8 {[%clk 0:02:05]} 20. Bxf6 {[%clk 0:02:28]}  gxf6 {[%clk 0:01:51]} 21. Rd7 {[%clk 0:02:27]}  Qc6 {[%clk 0:01:21]} 22. Rxe7 {[%clk 0:02:12]}  Qxe6 {[%clk 0:01:20]} 23. R1xe6 {[%clk 0:02:11]}  Rxe7 {[%clk 0:01:18]} 24. Rxe7 {[%clk 0:02:12]}  Bxf3 {[%clk 0:01:18]} 25. gxf3 {[%clk 0:02:11]}  Nc4 {[%clk 0:01:16]} 26. Nd5 {[%clk 0:02:03]}  Rf8 {[%clk 0:01:15]} 27. Re6 {[%clk 0:01:59]}  Nxb2 {[%clk 0:00:59]} 28. Rxa6 {[%clk 0:01:58]}  Nc4 {[%clk 0:00:54]} 29. Nxf6 {[%clk 0:01:57]}  Nxa3 {[%clk 0:00:49]} 30. Nxh7 {[%clk 0:01:45]}  Rxf3 {[%clk 0:00:47]} 31. Ng5 {[%clk 0:01:42]}  Rc3 {[%clk 0:00:42]} 32. Ne4 {[%clk 0:01:42]}  Rc4 {[%clk 0:00:35]} 33. Rxa3 {[%clk 0:01:40]}  Rxe4 {[%clk 0:00:35]} 34. Rg3 {[%clk 0:01:37]}  b4 {[%clk 0:00:31]} 35. h3 {[%clk 0:01:23]}  Rc4 {[%clk 0:00:31]} 36. Rg4 {[%clk 0:01:23]}  Rxc2 {[%clk 0:00:26]} 37. Rxb4 {[%clk 0:01:23]}  Rc3 {[%clk 0:00:26]} 38. Kg2 {[%clk 0:01:23]}  Kg7 {[%clk 0:00:25]} 39. Rg4+ {[%clk 0:01:23]}  Kf6 {[%clk 0:00:24]} 40. h4 {[%clk 0:01:23]}  Kf5 {[%clk 0:00:24]} 41. Rg3 {[%clk 0:01:22]}  Rc4 {[%clk 0:00:23]} 42. Kh3 {[%clk 0:01:22]}  Rf4 {[%clk 0:00:21]} 43. f3 {[%clk 0:01:20]}  Ra4 {[%clk 0:00:21]} 44. h5 {[%clk 0:01:20]}  Ra1 {[%clk 0:00:20]} 45. Kh4 {[%clk 0:01:10]}  Kf6 {[%clk 0:00:19]} 46. f4 {[%clk 0:01:05]}  Rf1 {[%clk 0:00:17]} 47. Kg4 {[%clk 0:01:05]}  Rh1 {[%clk 0:00:16]} 48. Rh3 {[%clk 0:01:02]}  Rg1+ {[%clk 0:00:16]} 49. Kf3 {[%clk 0:01:00]}  Rg7 {[%clk 0:00:08]} 50. h6 {[%clk 0:01:00]}  Rh7 {[%clk 0:00:08]} 51. Kg4 {[%clk 0:00:58]}  Kf7 {[%clk 0:00:06]} 52. Kg5 {[%clk 0:00:58]}  Kg8 {[%clk 0:00:07]} 53. f5 {[%clk 0:00:58]}  Kh8 {[%clk 0:00:05]} 54. Rd3 {[%clk 0:00:57]}  Re7 {[%clk 0:00:04]} 55. Kg6 {[%clk 0:00:55]}  Re8 {[%clk 0:00:04]} 56. Rd7 {[%clk 0:00:54]}  Rg8+ {[%clk 0:00:04]} 57. Rg7 {[%clk 0:00:54]}  Rxg7+ {[%clk 0:00:03]} 58. hxg7+ {[%clk 0:00:53]}  Kg8 {[%clk 0:00:04]} 59. Kf6 {[%clk 0:00:53]}  Kh7 {[%clk 0:00:04]} 60. Kf7 {[%clk 0:00:53]} 1-0


[Site "https://www.chess.com"]

[Event "Titled Tuesday Blitz December 20 Early 2022"]
[White "Najdoski, Toni"]
[Black "Roshka, Yevgeniy"]
[WhiteFideId "15001334"]
[BlackFideId "14129558"]
[WhiteElo "2598"]
[BlackElo "2429"]
[Result "0-1"]
[Round "02"]
[TimeControl "180+2"]
[Date "2022.12.20"]
[WhiteClock "0:00:25"]
[BlackClock "0:00:16"]

1. e4 {[%clk 0:02:57]}  e5 {[%clk 0:02:59]} 2. Nf3 {[%clk 0:02:54]}  Nc6 {[%clk 0:02:58]} 3. Bc4 {[%clk 0:02:53]}  Nf6 {[%clk 0:02:58]} 4. d3 {[%clk 0:02:52]}  h6 {[%clk 0:02:57]} 5. Nbd2 {[%clk 0:02:52]}  d6 {[%clk 0:02:57]} 6. Nf1 {[%clk 0:02:49]}  g6 {[%clk 0:02:52]} 7. Ne3 {[%clk 0:02:48]}  Bg7 {[%clk 0:02:51]} 8. O-O {[%clk 0:02:41]}  O-O {[%clk 0:02:50]} 9. c3 {[%clk 0:02:39]}  a6 {[%clk 0:02:45]} 10. a4 {[%clk 0:02:38]}  Be6 {[%clk 0:02:26]} 11. Bxe6 {[%clk 0:02:29]}  fxe6 {[%clk 0:02:26]} 12. Qb3 {[%clk 0:02:28]}  Qc8 {[%clk 0:02:25]} 13. Bd2 {[%clk 0:02:01]}  Kh7 {[%clk 0:02:14]} 14. Qc2 {[%clk 0:02:01]}  Nh5 {[%clk 0:02:10]} 15. b4 {[%clk 0:01:51]}  Nf4 {[%clk 0:01:56]} 16. b5 {[%clk 0:01:50]}  Ne7 {[%clk 0:01:54]} 17. d4 {[%clk 0:01:48]}  exd4 {[%clk 0:01:49]} 18. cxd4 {[%clk 0:01:47]}  c5 {[%clk 0:01:22]} 19. bxc6 {[%clk 0:01:26]}  Nxc6 {[%clk 0:01:11]} 20. Rab1 {[%clk 0:01:13]}  Rb8 {[%clk 0:00:54]} 21. Rfc1 {[%clk 0:00:48]}  Qe8 {[%clk 0:00:52]} 22. d5 {[%clk 0:00:43]}  Ne5 {[%clk 0:00:41]} 23. Nd4 {[%clk 0:00:37]}  exd5 {[%clk 0:00:32]} 24. exd5 {[%clk 0:00:34]}  Ned3 {[%clk 0:00:23]} 25. Ne6 {[%clk 0:00:28]}  Ne2+ {[%clk 0:00:17]} 26. Kh1 {[%clk 0:00:25]}  Nxf2# {[%clk 0:00:16]} 0-1


[Site "https://www.chess.com"]